bitfinex/quotes_ETHUSD_20250523
["timestamp","ask_amount","ask_price","bid_price","bid_amount"]
[1748002852369,1.5629,2527.7,2525.7,1.5602]
[1748002852564,3.95740986,2527.0,2525.8,0.55195766]
[1748002852799,3.95715866,2527.1,2525.7,1.5602]
[1748002853000,3.95789475,2526.6,2525.7,5.5193696]
[1748002853220,9.5943,2528.3,2525.7,1.5602]
[1748002853420,1.5943,2528.3,2525.7,1.5602]
[1748002853618,8.0,2528.0,2525.7,1.5602]
[1748002853919,21.04355397,2528.0,2525.7,1.5602]
[1748002854091,1.5943,2528.3,2525.9,1.6192]
[1748002854293,3.95645912,2527.6,2525.9,1.6192]
[1748002854619,1.5943,2528.3,2525.9,1.6192]
[1748002854780,5.5495728,2528.3,2525.9,1.6192]
[1748002854985,4.81007931,2528.4,2525.9,1.6192]
[1748002854986,3.95616568,2527.7,2525.9,1.6192]
[1748002855183,3.95809242,2526.5,2525.9,1.6192]
[1748002855526,1.5492,2528.1,2526.0,0.03958387]
[1748002855527,8.0,2527.9,2526.0,0.03958387]
[1748002855683,3.95600917,2527.8,2525.9,1.6192]
[1748002855879,3.95616568,2527.7,2525.9,9.6192]
[1748002856079,3.95742118,2526.9,2526.1,3.95857288]
[1748002856279,3.95720667,2527.1,2525.9,1.6192]
[1748002856486,3.95428842,2528.9,2526.2,4.50851476]
[1748002856707,13.4217,2529.0,2526.3,25.062]
[1748002856894,3.95631628,2527.7,2526.4,0.55]
[1748002857092,13.4217,2529.0,2526.5,0.55]
[1748002857296,8.0,2528.3,2526.6,0.55]
[1748002857508,3.95651504,2527.5,2526.8,3.95757479]
[1748002857713,3.95628482,2527.7,2527.0,3.95715245]
[1748002857894,3.95677487,2527.4,2526.7,1.6052]
[1748002858110,3.95644751,2527.6,2526.9,4.50735207]
[1748002858313,13.4217,2529.0,2526.8,8.55]
[1748002858486,3.95428842,2528.9,2526.8,0.55]
[1748002858824,3.95517817,2528.4,2526.7,5.56287096]
[1748002859007,3.95538299,2528.3,2526.8,0.55]
[1748002859181,3.95460117,2528.7,2526.7,1.6052]
[1748002859381,3.95491398,2528.5,2526.7,1.6052]
[1748002859623,3.95647432,2527.6,2526.7,1.6052]
[1748002859829,0.39546012,2528.6,2526.7,1.6052]
[1748002859982,3.95627048,2527.7,2527.0,3.95711882]
[1748002860187,13.4217,2529.0,2527.1,0.03956469]
[1748002860418,0.31485844,2528.9,2526.9,1.6622]
[1748002860591,0.31485844,2528.9,2526.1,1.6622]
[1748002860592,8.0,2527.3,2526.1,1.6622]
[1748002860802,3.95841586,2526.3,2526.1,1.6622]
[1748002861016,3.95841665,2526.3,2525.7,3.95917655]
[1748002861322,3.95831352,2526.4,2525.8,3.95903258]
[1748002861525,3.95774497,2526.7,2526.1,3.95856747]
[1748002861686,3.95742102,2526.9,2525.5,8.0]
[1748002862029,11.854,2527.3,2526.4,1.5475]
[1748002862227,15.81084999,2527.3,2526.4,1.5475]
[1748002862403,3.95778732,2526.7,2526.4,1.5475]
[1748002862603,11.854,2527.3,2526.4,1.5475]
[1748002862803,11.854,2527.3,2525.4,21.02964109]
[1748002862804,3.95898491,2525.9,2525.4,17.07]
[1748002863008,5.52291504,2526.8,2524.4,1.6197]
[1748002863202,0.5522915,2526.7,2524.8,1.6197]
[1748002863407,3.95703055,2527.2,2525.3,3.95992555]
[1748002863408,8.0,2527.1,2525.3,3.95992555]
[1748002863610,8.0,2527.2,2525.5,3.95959764]
[1748002863611,3.95870574,2526.1,2525.5,3.95959764]
[1748002863810,3.95741818,2526.9,2525.6,3.95943538]
[1748002864135,3.95710498,2527.1,2525.7,1.5655]
[1748002864353,11.854,2527.3,2525.8,0.55]
[1748002864488,3.95810114,2526.5,2525.7,9.5655]
[1748002864695,3.9582608,2526.4,2525.8,3.9590999]
[1748002864896,3.95710498,2527.1,2525.7,1.5655]
[1748002865136,3.95827244,2526.4,2525.7,1.5655]
[1748002865289,3.95914165,2525.8,2525.7,1.5655]
[1748002865495,11.857,2526.0,2525.0,1.6299]
[1748002865804,11.857,2526.0,2522.6,2.07356358]
[1748002865805,0.31485844,2525.8,2524.2,1.6299]
[1748002866006,0.31485844,2525.8,2524.6,3.96092674]
[1748002866007,3.95929841,2525.7,2524.6,3.96092674]
[1748002866340,0.31485844,2525.6,2524.2,1.6299]
[1748002866542,0.31485844,2525.6,2522.2,4.77308116]
[1748002866543,3.96184481,2524.1,2523.5,3.96266061]
[1748002866740,8.0,2525.4,2523.4,1.523]
[1748002866897,3.96124354,2524.5,2523.9,3.96204059]
[1748002867247,19.859,2525.2,2523.4,1.523]
[1748002867392,1.6096,2524.2,2522.5,1.5399]
[1748002867738,0.20441585,2525.2,2522.9,1.5399]
[1748002867946,0.31485844,2525.1,2523.7,1.5399]
[1748002868106,0.31485844,2525.1,2523.8,0.55]
[1748002868311,3.96097923,2524.7,2523.9,17.077]
[1748002868510,4.27518285,2525.1,2523.9,17.077]
[1748002868511,0.31485844,2524.6,2523.9,17.077]
[1748002868896,3.96167281,2524.2,2523.9,17.077]
[1748002869195,0.31485844,2524.1,2523.5,3.96264006]
[1748002869397,4.276696,2524.1,2523.2,1.5906]
[1748002869717,0.31485844,2524.1,2523.3,0.03962558]
[1748002869921,0.31485844,2524.1,2523.2,1.5906]
[1748002870122,0.31485844,2524.1,2522.1,21.04786054]
[1748002870123,0.31485844,2524.1,2522.2,1.5411]
[1748002870333,0.31485844,2524.1,2522.3,0.03963721]
[1748002870538,0.31485844,2524.1,2522.2,1.5411]
[1748002870698,3.9624361,2523.7,2522.2,1.5411]
[1748002870894,3.9628596,2523.5,2522.9,3.96368354]
[1748002871241,3.96218255,2523.9,2522.2,1.5411]
[1748002871447,1.29946428,2524.1,2522.4,3.96447827]
[1748002871448,0.31485844,2524.1,2522.4,3.96447827]
[1748002871595,0.31485844,2524.1,2522.3,0.03963583]
[1748002871596,0.31485844,2524.1,2522.9,1.5411]
[1748002871797,0.31485844,2524.1,2523.2,8.55]
[1748002871997,0.31485844,2524.1,2524.0,3.96196513]
[1748002872397,3.95903463,2525.9,2524.0,4.51196513]
[1748002872601,1.517,2526.0,2524.0,0.55]
[1748002872829,1.517,2526.7,2525.4,1.5554]
[1748002873016,1.517,2526.7,2525.5,0.59110884]
[1748002873017,0.31485844,2526.7,2525.5,0.59110884]
[1748002873219,0.31485844,2526.7,2525.6,0.55]
[1748002873448,0.31485844,2526.7,2525.5,21.0494921]
[1748002873645,0.31485844,2526.7,2525.5,17.09]
[1748002873811,0.31485844,2526.7,2525.6,8.55]
[1748002873995,0.31485844,2526.7,2526.6,3.95788807]
[1748002874198,1.6118,2529.0,2528.0,3.95565966]
[1748002874505,3.95585268,2527.9,2527.8,17.09]
[1748002874846,5.5659815,2529.0,2526.9,1.6274]
[1748002875058,3.95514749,2528.4,2526.9,1.6274]
[1748002875343,1.815948,2529.0,2526.9,1.6274]
[1748002875651,3.95700237,2527.2,2526.9,1.6274]
[1748002875837,3.95618996,2527.7,2526.9,1.6274]
[1748002876038,1.5363,2528.0,2526.9,1.6274]
[1748002876240,3.95585268,2527.9,2526.7,17.09]
[1748002876711,1.5821,2527.5,2525.9,1.6551]
[1748002876911,8.0,2527.3,2525.4,1.6551]
[1748002877111,3.95943895,2525.7,2525.4,1.6551]
[1748002877310,1.19566353,2527.2,2525.4,1.6551]
[1748002877552,3.95883454,2526.0,2525.4,1.6551]
[1748002877736,3.95809255,2526.5,2525.4,1.6551]
[1748002877911,3.95809255,2526.5,2525.0,17.088]
[1748002877912,3.95855299,2526.2,2525.0,17.088]
[1748002878113,3.9597331,2525.5,2525.0,17.088]
[1748002878327,3.95990995,2525.4,2525.0,17.088]
[1748002878654,11.866,2526.5,2525.0,17.088]
[1748002878655,3.95867146,2526.1,2525.0,17.088]
[1748002878858,1.19586715,2526.0,2525.0,17.088]
[1748002879039,11.866,2526.6,2525.0,17.088]
[1748002879352,5.55036989,2527.2,2525.2,5.60287828]
[1748002879550,5.55027978,2527.2,2525.2,1.6428]
[1748002879755,3.95799593,2526.6,2525.2,1.6428]
[1748002880056,3.95804472,2526.5,2525.2,1.6428]
[1748002880245,0.39579959,2526.6,2525.2,1.6428]
[1748002880434,3.96008749,2525.2,2525.0,17.088]
[1748002880631,3.96023919,2525.1,2525.0,17.088]
[1748002880952,13.3835,2526.2,2525.0,17.088]
[1748002880953,3.95882818,2526.0,2525.0,17.088]
[1748002881114,3.96023919,2525.1,2525.0,17.088]
[1748002881313,3.95816139,2526.5,2525.0,17.41860697]
[1748002881553,0.20416611,2527.2,2525.5,1.5754]
[1748002881854,3.95647873,2527.5,2525.8,3.9590077]
[1748002882032,3.95769894,2526.8,2526.1,3.95855629]
[1748002882355,1.6376,2527.6,2526.2,17.088]
[1748002882522,3.95835807,2526.3,2526.2,17.088]
[1748002882718,3.95647873,2527.5,2526.2,17.088]
[1748002882913,3.95835807,2526.3,2526.2,17.088]
[1748002883315,8.0,2527.3,2526.2,17.088]
[1748002883530,3.95791654,2526.6,2526.2,17.088]
[1748002883730,12.42640787,2527.4,2526.2,17.088]
[1748002883930,3.95835807,2526.3,2526.2,17.088]
[1748002884265,3.95820139,2526.4,2525.5,1.5754]
[1748002884430,3.96003879,2525.3,2525.0,17.087]
[1748002884638,3.96008829,2525.2,2525.0,17.087]
[1748002884957,3.95971929,2525.5,2525.0,17.087]
[1748002885161,1.5089,2526.5,2525.0,17.087]
[1748002885467,3.96023919,2525.1,2525.0,17.087]
[1748002885666,3.95835807,2526.3,2525.0,17.087]
[1748002885831,3.95867146,2526.1,2525.0,17.087]
[1748002886026,3.96023919,2525.1,2525.0,17.087]
[1748002886251,3.95933327,2525.7,2524.3,1.5923]
[1748002886461,3.96070891,2524.9,2523.7,1.5072]
[1748002886632,3.96073957,2524.8,2523.7,18.5942]
[1748002886833,3.96176255,2524.2,2523.7,18.5942]
[1748002887069,11.866,2525.2,2523.7,18.5942]
[1748002887267,3.9622791,2523.8,2523.7,18.5942]
[1748002887471,3.9622791,2523.8,2522.8,17.089]
[1748002887779,1.5935,2524.5,2522.9,18.6054]
[1748002887943,3.96353547,2523.0,2522.9,1.5164]
[1748002888150,9.5935,2524.5,2522.9,1.5164]
[1748002888335,1.5935,2524.5,2522.9,1.5164]
[1748002888533,5.55472036,2524.5,2522.9,1.5164]
[1748002888737,3.96092858,2524.7,2523.0,0.37049841]
[1748002888962,3.96055289,2524.9,2523.1,0.33085593]
[1748002889160,9.5993,2525.0,2523.1,0.33085593]
[1748002889363,1.5993,2525.0,2523.1,0.33085593]
[1748002889577,13.4663,2525.0,2523.3,2.175]
[1748002889778,3.96055289,2524.9,2523.5,3.9626525]
[1748002890089,11.867,2525.0,2523.7,0.55]
[1748002890278,1.58,2526.1,2524.3,1.5574]
[1748002890490,3.95870255,2526.1,2524.6,3.96102352]
[1748002890803,3.95851476,2526.2,2524.4,17.093]
[1748002890982,19.87,2526.3,2524.5,0.56847787]
[1748002890983,3.96018822,2525.2,2524.5,0.56847787]
[1748002891290,15.82849695,2526.3,2524.5,4.52962259]
[1748002891291,3.95962918,2525.5,2524.5,4.52962259]
[1748002891592,3.95972614,2525.5,2524.5,0.56847787]
[1748002891758,3.9596153,2525.5,2524.9,3.96043908]
[1748002892088,3.95969811,2525.5,2524.9,3.96055177]
[1748002892392,0.95089,2526.4,2525.3,1.6591]
[1748002892595,1.594,2527.1,2525.4,0.03959155]
[1748002892797,3.95679183,2527.3,2525.6,1.5588]
[1748002892958,3.95914867,2525.8,2525.6,1.5588]
[1748002893153,12.42286957,2527.4,2525.6,1.5588]
[1748002893354,3.95929841,2525.7,2525.6,1.5588]
[1748002893556,3.95976874,2525.4,2525.3,17.093]
[1748002893752,11.87,2526.2,2525.3,17.093]
[1748002893981,3.95976874,2525.4,2525.3,17.093]
[1748002894177,3.96008236,2525.2,2525.1,1.5853]
[1748002894391,3.95922374,2525.8,2525.1,1.5853]
[1748002894611,3.95867146,2526.1,2525.1,1.5853]
[1748002894817,8.0,2526.4,2525.1,1.5853]
[1748002894975,3.96008236,2525.2,2524.6,17.093]
[1748002895296,2.53352333,2526.3,2524.4,1.5122]
[1748002895297,3.96118043,2524.5,2524.4,1.5122]
[1748002895620,3.96048524,2525.0,2524.4,1.5122]
[1748002895621,11.87,2525.8,2524.4,1.5122]
[1748002895913,15.82874843,2526.1,2524.4,1.5122]
[1748002896117,3.95898491,2525.9,2524.4,1.5122]
[1748002896419,3.96060803,2524.9,2524.4,1.5122]
[1748002896578,3.95997068,2525.3,2524.4,1.5122]
[1748002896777,3.96042641,2525.0,2524.4,5.4734152]
[1748002896968,3.96042641,2525.0,2524.4,1.5122]
[1748002897175,3.95941962,2525.7,2524.4,1.5122]
[1748002897375,3.96032708,2525.1,2524.5,3.96105448]
[1748002897718,3.96004842,2525.3,2524.4,1.5122]
[1748002897885,3.95910236,2525.9,2524.4,1.5122]
[1748002898090,3.95961195,2525.5,2524.4,5.47349272]
[1748002898328,3.95936711,2525.7,2524.6,3.96102352]
[1748002898615,0.55286957,2527.3,2526.0,1.6078]
[1748002898786,3.95738762,2527.0,2526.1,17.13257792]
[1748002899115,0.55286957,2527.3,2526.2,0.55]
[1748002899277,0.55286957,2527.3,2526.6,0.55]
[1748002899681,0.55286957,2527.3,2526.9,3.95741818]
[1748002899921,1.80508608,2528.0,2527.9,3.95585268]
[1748002900138,2.06974693,2528.7,2528.6,4.05695757]
[1748002900286,3.82222149,2529.3,2529.2,3.95381938]
[1748002900478,0.8585404,2529.3,2529.2,29.59681938]
[1748002900693,3.7846114,2529.5,2529.4,4.50350676]
[1748002900894,2.43805232,2531.1,2529.4,1.18211037]
[1748002901095,0.39802482,2530.8,2530.7,3.95147587]
[1748002901309,2.43805232,2531.1,2530.7,17.093]
[1748002902235,2.43805232,2531.1,2529.7,17.081]
[1748002902236,3.95288165,2529.8,2529.7,17.081]
[1748002902419,3.95163202,2530.6,2529.2,17.081]
[1748002902609,2.33948598,2530.7,2529.3,25.081]
[1748002902804,2.33948598,2530.7,2529.5,8.0]
[1748002903005,2.33948598,2530.7,2529.7,8.55]
[1748002903220,2.33948598,2530.7,2529.6,17.12051961]
[1748002903221,2.33948598,2530.7,2530.6,3.95163202]
[1748002903421,2.33948598,2530.7,2529.7,8.0]
[1748002903962,2.33948598,2530.7,2529.7,8.55]
[1748002904169,2.33948598,2530.7,2530.0,8.0]
[1748002904330,6.2909981,2530.7,2529.9,11.95269829]
[1748002904516,2.33948598,2530.7,2529.9,8.0]
[1748002904719,2.33948598,2530.7,2529.7,4.50301294]
[1748002904967,2.92856845,2530.7,2529.7,8.0]
[1748002905249,2.92856845,2530.7,2529.4,0.55]
[1748002905250,8.0,2529.4,2527.3,1.2586052]
[1748002905467,8.0,2530.3,2527.3,1.2586052]
[1748002905468,3.95663527,2527.4,2527.3,1.2586052]
[1748002905668,3.95663527,2527.4,2527.3,1.2373518]
[1748002906144,11.95663527,2527.4,2527.3,1.00534834]
[1748002906315,15.50329185,2527.4,2527.3,0.23200346]
[1748002906516,3.95709265,2527.2,2525.1,17.073]
[1748002906828,3.95679183,2527.3,2525.1,17.073]
[1748002907152,15.81229026,2527.7,2525.1,17.073]
[1748002907153,11.856,2527.7,2525.1,17.073]
[1748002907358,3.95769697,2526.8,2525.3,8.0]
[1748002907528,9.5597,2528.0,2525.1,17.073]
[1748002907529,11.856,2527.3,2525.1,17.073]
[1748002907728,1.5597,2528.0,2525.1,23.1232931]
[1748002908051,3.95631515,2527.7,2525.8,3.95908613]
[1748002908364,5.5154308,2528.0,2525.1,27.08339489]
[1748002908531,11.856,2527.8,2525.1,23.1232931]
[1748002908848,3.95600917,2527.8,2525.7,0.55]
[1748002909053,3.9577119,2526.8,2525.6,8.0]
[1748002909217,3.95726917,2527.0,2525.3,6.43282285]
[1748002909419,3.95837722,2526.3,2525.5,3.95948009]
[1748002909634,3.95773942,2526.7,2525.7,0.55]
[1748002909837,11.858,2527.6,2525.5,0.55]
[1748002910037,11.858,2527.6,2525.4,3.9596633]
[1748002910038,3.95689586,2527.3,2525.4,3.9596633]
[1748002910248,13.43941657,2527.6,2526.1,3.95855734]
[1748002910464,3.95669588,2527.4,2526.1,3.95855734]
[1748002910683,3.95609216,2527.8,2526.3,3.95822206]
[1748002910871,3.95609216,2527.8,2526.4,17.40842376]
[1748002911183,1.5597,2528.0,2526.4,17.40842376]
[1748002911476,3.95688587,2527.3,2526.4,17.40842376]
[1748002911780,3.95732188,2527.0,2526.4,17.40842376]
[1748002911980,3.95671416,2527.4,2526.4,17.40842376]
[1748002912276,8.0,2527.9,2526.4,17.40842376]
[1748002912450,3.95647873,2527.5,2526.4,17.40842376]
[1748002912655,8.0,2527.9,2526.4,17.40842376]
[1748002912656,3.95775447,2526.7,2526.4,17.40842376]
[1748002912863,3.95714704,2527.1,2526.4,17.40842376]
[1748002913167,3.95600917,2527.8,2525.7,8.0]
[1748002913382,8.0,2527.9,2523.8,1.94530779]
[1748002913383,3.95647873,2527.5,2525.6,17.078]
[1748002913558,3.9581687,2526.5,2525.8,3.95899917]
[1748002913761,3.95860009,2526.2,2525.7,17.078]
[1748002913941,3.95747017,2526.9,2525.7,17.078]
[1748002914142,3.95801219,2526.6,2525.7,21.03729416]
[1748002914343,3.95758603,2526.8,2526.0,3.95870874]
[1748002914548,3.95730803,2527.0,2525.7,17.078]
[1748002914751,1.84015844,2526.9,2523.5,0.61847135]
[1748002915086,3.95788807,2526.6,2524.5,6.43282285]
[1748002915285,3.95934209,2525.7,2524.6,8.64328228]
[1748002915486,3.95859914,2526.2,2524.6,8.64328228]
[1748002915784,0.31485844,2526.8,2524.6,8.64328228]
[1748002915785,3.95773142,2526.7,2525.2,8.0]
[1748002915958,3.95773142,2526.7,2525.1,10.39296127]
[1748002915959,3.95829447,2526.4,2525.8,3.95903355]
[1748002916163,3.95829447,2526.4,2525.9,17.079]
[1748002916164,3.95856106,2526.2,2525.9,17.079]
[1748002916481,3.95710498,2527.1,2526.0,0.53901772]
[1748002916682,3.95759679,2526.8,2526.1,3.95853267]
[1748002916846,3.95759679,2526.8,2526.0,4.49780836]
[1748002916847,3.95784513,2526.7,2526.0,4.49775658]
[1748002917047,4.27247076,2526.8,2526.0,0.53901772]
[1748002917375,4.27247076,2526.8,2525.9,17.079]
[1748002917376,3.95781713,2526.7,2525.9,17.079]
[1748002917571,0.31485844,2526.6,2525.9,17.079]
[1748002917784,0.31485844,2526.6,2526.5,3.95804472]
[1748002917949,3.95420826,2529.0,2527.8,3.95586089]
[1748002918149,11.862,2529.7,2528.8,3.95444479]
[1748002918150,0.28464875,2528.9,2528.8,3.95444479]
[1748002918370,0.28464875,2528.9,2528.6,17.081]
[1748002918958,0.28464875,2528.9,2528.7,3.95460117]
[1748002919145,0.28464875,2528.9,2528.8,3.95444479]
[1748002919574,0.28464875,2528.9,2528.8,3.99397479]
[1748002919780,0.28464875,2528.9,2528.8,4.7411587]
[1748002920293,1.6136,2531.1,2528.8,0.78671391]
[1748002920590,3.95131974,2530.8,2528.8,0.78671391]
[1748002920781,1.6136,2531.1,2528.8,0.78671391]
[1748002921154,3.9510075,2531.0,2529.2,3.95371301]
[1748002921370,1.6136,2531.1,2529.3,0.3953713]
[1748002921574,11.859,2531.5,2529.4,8.03951312]
[1748002921889,11.859,2532.2,2530.1,6.43282285]
[1748002922093,3.9491277,2532.3,2531.5,3.95010795]
[1748002922302,3.94829792,2532.8,2532.1,3.94921981]
[1748002922303,3.94820966,2532.8,2532.1,3.94921981]
[1748002922460,3.94770719,2533.2,2532.4,3.94869467]
[1748002922798,3.95673197,2533.3,2532.1,0.03948654]
[1748002922799,3.94847756,2532.7,2532.1,0.03948654]
[1748002923095,3.94788516,2533.1,2532.0,17.076]
[1748002923296,0.00929253,2533.3,2532.0,17.076]
[1748002923471,3.94881753,2532.5,2532.0,17.076]
[1748002923665,3.94757618,2533.2,2532.0,17.076]
[1748002923867,3.94878164,2532.5,2532.0,17.076]
[1748002924067,0.00929253,2533.3,2532.0,17.076]
[1748002924298,0.00929253,2533.3,2532.2,3.94913513]
[1748002924468,0.00929253,2533.3,2532.1,0.0394798]
[1748002924469,0.00929253,2533.3,2532.5,3.94866625]
[1748002924655,0.00929253,2533.3,2532.3,3.94897918]
[1748002924998,0.00929253,2533.3,2532.7,3.94823156]
[1748002925302,0.00929253,2533.3,2532.2,11.94913513]
[1748002925593,3.94822119,2532.8,2532.0,17.076]
[1748002925801,3.94808591,2532.9,2532.2,3.94902583]
[1748002926095,0.00929253,2533.3,2532.0,17.076]
[1748002926298,3.94813865,2532.9,2532.2,3.94902039]
[1748002926459,3.94825371,2532.8,2532.1,3.94923448]
[1748002926659,3.94825371,2532.8,2532.0,21.02542429]
[1748002926660,3.94767723,2533.2,2532.2,0.03947908]
[1748002926980,3.94539572,2534.6,2532.4,8.0]
[1748002927190,3.94697789,2533.6,2532.8,3.94805632]
[1748002927384,3.94570707,2534.4,2532.8,3.94805632]
[1748002927585,3.94696095,2533.6,2532.1,8.0]
[1748002927787,5.68776193,2534.5,2532.1,8.0]
[1748002928094,3.94570707,2534.4,2532.8,3.94806093]
[1748002928259,0.56878966,2534.3,2532.8,8.0]
[1748002928464,3.94624586,2534.1,2533.4,3.94717312]
[1748002928709,5.55151801,2535.3,2533.5,21.00000266]
[1748002928861,3.94446197,2535.2,2533.5,17.053]
[1748002929058,3.94591136,2534.3,2533.6,3.94690791]
[1748002929257,3.94603007,2534.2,2533.5,17.053]
[1748002929499,3.94492879,2534.9,2533.5,17.053]
[1748002929706,1.6559,2535.0,2532.6,17.053]
[1748002929865,3.94586276,2534.3,2532.2,17.053]
[1748002930067,3.94617418,2534.1,2532.3,17.053]
[1748002930308,3.94617418,2534.1,2532.4,8.0]
[1748002930475,1.6559,2534.4,2532.8,4.81474265]
[1748002930675,3.94768048,2533.2,2532.3,21.86774265]
[1748002930867,3.94667042,2533.8,2532.8,4.81474265]
[1748002931192,11.842,2535.1,2532.8,4.81474265]
[1748002931517,3.94508442,2534.8,2533.3,4.81474265]
[1748002931683,3.94673866,2533.8,2533.2,0.55]
[1748002931887,3.94508442,2534.8,2533.3,3.94732679]
[1748002932086,3.94539572,2534.6,2533.3,3.94732679]
[1748002932299,3.9466925,2533.8,2533.2,0.55]
[1748002932532,3.94564762,2534.5,2532.4,8.0]
[1748002932696,3.94720304,2533.5,2532.8,11.94810578]
[1748002933019,3.94720304,2533.5,2531.2,4.81474265]
[1748002933020,3.95023501,2531.5,2531.2,4.81474265]
[1748002933316,3.94985056,2531.8,2531.2,3.95066943]
[1748002933615,3.94897918,2532.3,2530.8,3.95131974]
[1748002933817,1.5868,2532.5,2530.8,0.0395007]
[1748002934016,3.94918828,2532.2,2530.7,3.95147587]
[1748002934191,0.39491883,2532.2,2530.7,8.0]
[1748002934391,1.5868,2532.5,2531.1,3.95078425]
[1748002934620,1.5015,2533.0,2530.6,17.047]
[1748002934915,1.5015,2533.0,2530.7,4.81474265]
[1748002934916,9.5015,2533.0,2530.7,4.81474265]
[1748002935140,1.5015,2532.0,2530.5,17.048]
[1748002935279,1.5015,2532.0,2529.2,3.95376585]
[1748002935280,3.95288165,2529.8,2529.7,0.06825546]
[1748002935697,3.95178518,2530.6,2529.7,0.06825546]
[1748002935698,8.0,2531.3,2529.7,0.06825546]
[1748002935929,3.95163202,2530.6,2529.7,0.06825546]
[1748002936218,3.95178818,2530.5,2529.8,0.03952248]
[1748002936421,3.95247827,2530.1,2529.7,0.06825546]
[1748002936604,3.95252227,2530.1,2529.7,0.06825546]
[1748002936805,3.95288165,2529.8,2529.7,0.06825546]
[1748002937320,0.79056109,2529.8,2528.4,17.048]
[1748002937493,3.95377564,2529.3,2528.4,17.048]
[1748002937695,11.838,2530.1,2528.5,8.0]
[1748002937919,11.838,2530.1,2528.7,3.95460117]
[1748002938124,3.95285761,2529.9,2528.0,3.95566478]
[1748002938285,3.95511116,2528.4,2528.2,17.052]
[1748002938490,3.95350676,2529.4,2528.2,17.052]
[1748002938785,1.6264,2529.5,2528.3,0.03954296]
[1748002939020,5.5798073,2529.5,2528.3,3.95522683]
[1748002939220,1.5247,2530.1,2528.3,3.99476584]
[1748002939426,3.95237144,2530.2,2528.6,3.95471185]
[1748002939593,3.95178818,2530.5,2528.3,3.95522683]
[1748002939824,1.5247,2530.6,2529.0,0.55]
[1748002940023,3.95203875,2530.4,2529.2,0.55]
[1748002940346,3.95303811,2529.7,2528.7,0.55]
[1748002940651,15.79206218,2531.0,2529.2,0.55]
[1748002940849,15.79206218,2531.0,2528.0,10.37509509]
[1748002940850,11.841,2531.0,2528.6,0.03952282]
[1748002941051,2.14084,2531.0,2529.5,3.9532886]
[1748002941224,11.843,2531.5,2529.7,0.55]
[1748002941553,11.843,2531.5,2530.3,0.55]
[1748002941741,3.94937962,2532.1,2530.6,0.55]
[1748002941944,3.94986248,2531.8,2531.1,3.95070397]
[1748002942155,1.6567,2532.4,2530.9,17.055]
[1748002942477,1.6567,2532.4,2531.0,0.58950153]
[1748002942677,3.94897918,2532.3,2530.9,17.055]
[1748002942978,1.6567,2532.4,2530.9,17.055]
[1748002943154,5.60552675,2532.4,2530.9,17.055]
[1748002943335,3.94944707,2532.0,2530.9,17.055]
[1748002943519,1.6567,2532.4,2530.9,17.055]
[1748002943725,3.95000454,2531.7,2531.0,4.5010075]
[1748002943961,3.95016446,2531.6,2531.0,0.55]
[1748002944126,3.95026417,2531.5,2531.0,0.55]
[1748002944488,1.6567,2532.4,2530.9,17.055]
[1748002944770,5.60554613,2532.4,2530.5,0.55]
[1748002944973,5.60554613,2532.4,2530.7,0.55]
[1748002944974,3.95068428,2531.3,2530.7,0.55]
[1748002945120,3.95096564,2531.1,2530.4,0.55]
[1748002945323,3.95077861,2531.2,2530.7,0.55]
[1748002945558,3.95680221,2533.3,2530.7,0.55]
[1748002945768,3.94897918,2532.3,2531.1,0.55]
[1748002945997,3.94897918,2532.3,2530.8,17.053]
[1748002945998,3.94788787,2533.0,2531.7,0.55]
[1748002946170,0.00929253,2533.3,2532.8,3.94806243]
[1748002946328,0.00929253,2533.3,2532.8,17.053]
[1748002946525,3.94632991,2534.0,2532.9,0.03947346]
[1748002946852,0.39463299,2533.9,2532.8,17.053]
[1748002947148,3.94769521,2533.2,2532.8,17.053]
[1748002947350,3.94804374,2532.9,2532.8,17.053]
[1748002947525,3.9479349,2533.0,2532.8,17.053]
[1748002947727,11.842,2534.0,2532.8,17.053]
[1748002947927,3.94804374,2532.9,2532.8,17.053]
[1748002948126,3.94710874,2533.5,2532.8,17.053]
[1748002948428,11.842,2534.0,2532.8,17.053]
[1748002948622,3.9478167,2533.1,2532.8,17.053]
[1748002948865,11.842,2534.0,2532.8,17.053]
[1748002949163,3.94761294,2533.2,2532.8,17.053]
[1748002949529,3.94722143,2533.5,2532.9,3.94803898]
[1748002949773,3.94555139,2534.5,2532.9,0.55]
[1748002949954,3.94711228,2533.5,2532.9,0.55]
[1748002950157,3.94655112,2533.9,2532.9,0.55]
[1748002950358,11.839,2534.9,2532.9,0.55]
[1748002950526,1.6484,2536.5,2533.5,0.55]
[1748002950727,3.94296191,2536.2,2534.4,3.94570707]
[1748002950929,3.94377045,2535.7,2534.5,21.54348534]
[1748002951140,3.94338912,2535.9,2534.7,0.55]
[1748002951339,0.1,2536.3,2533.4,0.36711953]
[1748002951569,1.42432284,2537.1,2531.1,0.0212534]
[1748002951570,1.6484,2533.5,2531.1,0.0212534]
[1748002951870,3.95058067,2531.3,2530.7,0.5506]
[1748002952080,4.49851141,2532.6,2530.9,3.95108948]
[1748002952298,3.94851141,2532.6,2530.9,3.95108948]
[1748002952431,3.9486413,2532.6,2531.9,1.23348264]
[1748002952637,3.94830129,2532.8,2531.9,1.23348264]
[1748002952831,3.9476962,2533.2,2532.0,3.94936256]
[1748002953058,3.9477729,2533.1,2532.0,0.03948998]
[1748002953280,3.94804374,2532.9,2531.9,2.15118264]
[1748002953452,11.839,2533.3,2531.9,2.15118264]
[1748002953644,3.94852755,2532.6,2531.9,2.15118264]
[1748002953875,3.94851614,2532.6,2531.9,2.15118264]
[1748002954183,3.94767122,2533.2,2531.9,2.15118264]
[1748002954332,3.94753834,2533.3,2532.0,0.58948451]
[1748002954673,3.94877384,2532.5,2531.9,2.15118264]
[1748002954885,3.94795432,2533.0,2531.9,0.9177]
[1748002955084,3.94790691,2533.0,2532.0,0.55]
[1748002955299,3.94695295,2533.6,2531.9,0.9177]
[1748002955477,8.0,2533.9,2531.9,0.9177]
[1748002955655,8.0,2533.9,2531.9,5.73457294]
[1748002955987,1.6049,2534.1,2532.0,0.55]